fUST/lending_fUST_20240117
["ID","MTS","AMOUNT","RATE_DAILY","PERIOD"]
[311917021,1705500639648,-153.0,0.000211,2]
[311917023,1705500639658,-397.91523,0.000211,2]
[311917025,1705500639667,-153.0,0.000211,2]
[311917027,1705500639680,-151.0,0.00021196,2]
[311917029,1705500639689,-153.0,0.000212,2]
[311917030,1705500639698,-303.92894519,0.00021222,2]
[311917032,1705500639707,-153.0,0.0002137,2]
[311917034,1705500639717,-153.0,0.0002137,2]
[311917036,1705500639725,-153.0,0.0002137,2]
[311917038,1705500639734,-155.490721,0.0002137,2]
[311917040,1705500639743,-153.0,0.0002137,2]
[311917042,1705500639753,-306.0,0.0002137,2]
[311917044,1705500639762,-200.0,0.00021415,7]
[311917046,1705500639771,-303.92894519,0.00021813,2]
[311917048,1705500639780,-276000.0,0.00021817,2]
[311917050,1705500639789,-309.9380124,0.00021913,2]
[311917051,1705500639798,-200.67511486,0.00021915,2]
[311917052,1705500639807,-1988.20966987,0.00021915,2]
[311917053,1705500639815,-648.68992902,0.00021915,2]
[311917054,1705500639824,-272.95847537,0.00021915,2]
[311917055,1705500639833,-1227.12587392,0.00021915,2]
[311917056,1705500639843,-686.55002124,0.00021915,2]
[311917057,1705500639852,-260.31909018,0.00021916,2]
[311917058,1705500639861,-151.0,0.00021917,2]
[311917059,1705500639869,-203.88975,0.00021917,2]
[311917060,1705500639878,-203.88975,0.00021917,2]
[311917061,1705500639888,-545.520959,0.00021917,2]
[311917062,1705500639897,-545.520959,0.00021917,2]
[311917063,1705500639906,-545.520959,0.00021917,2]
[311917064,1705500639915,-545.520959,0.00021917,2]
[311917065,1705500639926,-2082.34429626,0.00021917,2]
[311917066,1705500639935,-500.0,0.00021917,2]
[311917067,1705500639943,-500.0,0.00021917,2]
[311917068,1705500639952,-500.0,0.00021917,2]
[311917069,1705500639961,-164.71281458,0.00021917,2]
[311917070,1705500639970,-500.0,0.00021917,2]
[311917071,1705500639979,-500.0,0.00021917,2]
[311917072,1705500639987,-500.0,0.00021917,2]
[311917073,1705500639996,-500.0,0.00021917,2]
[311917074,1705500640006,-500.0,0.00021917,2]
[311917075,1705500640015,-569.61165838,0.00021917,2]
[311917076,1705500640023,-500.0,0.00021917,2]
[311917077,1705500640032,-500.0,0.00021917,2]
[311917078,1705500640041,-612.03,0.00021917,2]
[311917079,1705500640049,-500.0,0.00021917,2]
[311917080,1705500640058,-500.0,0.00021917,2]
[311917081,1705500640067,-500.0,0.00021917,2]
[311917082,1705500640075,-500.0,0.00021917,2]
[311917083,1705500640084,-500.0,0.00021917,2]
[311917084,1705500640094,-501.14569971,0.00021917,2]
[311917086,1705500640102,-497.37968749,0.00021917,2]
[311917087,1705500640111,-500.0,0.00021917,2]
[311917089,1705500640121,-500.0,0.00021917,2]
[311917091,1705500640131,-221.17429449,0.00021917,2]
[311917094,1705500640140,-426.88797914,0.00021917,2]
[311917096,1705500640150,-500.0,0.00021917,2]
[311917098,1705500640159,-451.30321561,0.00021917,2]
[311917100,1705500640169,-1650.93,0.00021917,2]
[311917101,1705500640179,-500.0,0.00021917,2]
[311917103,1705500640188,-500.0,0.00021917,2]
[311917105,1705500640197,-500.0,0.00021917,2]
[311917107,1705500640206,-500.0,0.00021917,2]
[311917109,1705500640215,-500.0,0.00021917,2]
[311917112,1705500640225,-500.0,0.00021917,2]
[311917113,1705500640234,-314.44072528,0.00021917,2]
[311917116,1705500640244,-1000.0,0.00021917,2]
[311917117,1705500640253,-500.0,0.00021917,2]
[311917119,1705500640262,-500.0,0.00021917,2]
[311917122,1705500640272,-500.80858493,0.00021917,2]
[311917124,1705500640281,-500.0,0.00021917,2]
[311917126,1705500640290,-850.43,0.00021917,2]
[311917128,1705500640299,-500.0,0.00021917,2]
[311917130,1705500640308,-500.0,0.00021917,2]
[311917131,1705500640317,-500.0,0.00021917,2]
[311917133,1705500640328,-500.0,0.00021917,2]
[311917135,1705500640337,-550.0,0.00021917,2]
[311917137,1705500640346,-500.0,0.00021917,2]
[311917139,1705500640355,-505.48723603,0.00021917,2]
[311917141,1705500640364,-500.0,0.00021917,2]
[311917143,1705500640374,-500.0,0.00021917,2]
[311917145,1705500640382,-500.0,0.00021917,2]
[311917147,1705500640392,-802.59,0.00021917,2]
[311917150,1705500640401,-500.0,0.00021917,2]
[311917152,1705500640410,-500.0,0.00021917,2]
[311917155,1705500640419,-500.0,0.00021917,2]
[311917156,1705500640429,-261.31076788,0.00021917,2]
[311917158,1705500640438,-500.90253928,0.00021917,2]
[311917160,1705500640447,-705.57,0.00021917,2]
[311917162,1705500640456,-500.0,0.00021917,2]
[311917164,1705500640465,-633.85,0.00021917,2]
[311917166,1705500640474,-500.0,0.00021917,2]
[311917168,1705500640483,-1000.0,0.00021917,2]
[311917170,1705500640493,-500.0,0.00021917,2]
[311917172,1705500640502,-500.0,0.00021917,2]
[311917174,1705500640511,-500.0,0.00021917,2]
[311917176,1705500640520,-500.0,0.00021917,2]
[311917178,1705500640529,-500.0,0.00021917,2]
[311917180,1705500640539,-500.0,0.00021917,2]
[311917182,1705500640548,-500.0,0.00021917,2]
[311917184,1705500640558,-500.0,0.00021917,2]
[311917186,1705500640567,-500.0,0.00021917,2]
[311917188,1705500640577,-500.0,0.00021917,2]
[311917190,1705500640586,-500.0,0.00021917,2]
[311917192,1705500640595,-202.33336312,0.00021917,2]
[311917194,1705500640605,-523.84467898,0.00021917,2]
[311917196,1705500640618,-500.0,0.00021917,2]
[311917198,1705500640627,-500.0,0.00021917,2]
[311917200,1705500640636,-500.0,0.00021917,2]
[311917202,1705500640645,-332.27608059,0.00021917,2]
[311917204,1705500640656,-496.38117138,0.00021917,2]
[311917206,1705500640665,-500.0,0.00021917,2]
[311917208,1705500640675,-500.0,0.00021917,2]
[311917210,1705500640684,-500.0,0.00021917,2]
[311917212,1705500640694,-500.0,0.00021917,2]
[311917214,1705500640703,-429.64655054,0.00021917,2]
[311917216,1705500640713,-500.0,0.00021917,2]
[311917218,1705500640722,-813.02,0.00021917,2]
[311917220,1705500640731,-500.0,0.00021917,2]
[311917222,1705500640740,-500.0,0.00021917,2]
[311917224,1705500640749,-500.0,0.00021917,2]
[311917232,1705500640759,-500.0,0.00021917,2]
[311917234,1705500640828,-500.0,0.00021917,2]
[311917236,1705500640838,-493.1083161,0.00021917,2]
[311917238,1705500640846,-500.0,0.00021917,2]
[311917240,1705500640856,-500.0,0.00021917,2]
[311917242,1705500640865,-500.0,0.00021917,2]
[311917244,1705500640874,-500.0,0.00021917,2]
[311917246,1705500640883,-529.23,0.00021917,2]
[311917248,1705500640892,-500.0,0.00021917,2]
[311917250,1705500640901,-500.0,0.00021917,2]
[311917252,1705500640910,-500.0,0.00021917,2]
[311917254,1705500640919,-500.90966369,0.00021917,2]
[311917256,1705500640930,-500.0,0.00021917,2]
[311917258,1705500640939,-500.0,0.00021917,2]
[311917260,1705500640948,-500.0,0.00021917,2]
[311917262,1705500640957,-532.97085441,0.00021917,2]
[311917264,1705500640966,-500.0,0.00021917,2]
[311917266,1705500640975,-500.0,0.00021917,2]
[311917268,1705500640984,-500.0,0.00021917,2]
[311917270,1705500640993,-501.95209961,0.00021917,2]
[311917272,1705500641002,-500.0,0.00021917,2]
[311917274,1705500641011,-500.0,0.00021917,2]
[311917276,1705500641020,-500.0,0.00021917,2]
[311917278,1705500641028,-500.0,0.00021917,2]
[311917280,1705500641037,-500.0,0.00021917,2]
[311917282,1705500641046,-500.0,0.00021917,2]
[311917284,1705500641055,-500.0,0.00021917,2]
[311917286,1705500641064,-500.0,0.00021917,2]
[311917288,1705500641073,-500.0,0.00021917,2]
[311917290,1705500641082,-502.1951578,0.00021917,2]
[311917292,1705500641091,-503.79040743,0.00021917,2]
[311917294,1705500641100,-542.28,0.00021917,2]
[311917296,1705500641109,-500.0,0.00021917,2]
[311917298,1705500641117,-500.0,0.00021917,2]
[311917299,1705500641126,-500.0,0.00021917,2]
[311917302,1705500641135,-501.70956628,0.00021917,2]
[311917304,1705500641145,-500.0,0.00021917,2]
[311917306,1705500641154,-500.0,0.00021917,2]
[311917308,1705500641164,-500.0,0.00021917,2]
[311917310,1705500641174,-500.0,0.00021917,2]
[311917312,1705500641183,-500.0,0.00021917,2]
[311917314,1705500641194,-500.0,0.00021917,2]
[311917316,1705500641204,-1145.73,0.00021917,2]
[311917318,1705500641213,-500.0,0.00021917,2]
[311917320,1705500641222,-179.25954201,0.00021917,2]
[311917322,1705500641231,-500.0,0.00021917,2]
[311917324,1705500641240,-500.0,0.00021917,2]
[311917326,1705500641249,-500.0,0.00021917,2]
[311917328,1705500641258,-500.0,0.00021917,2]
[311917330,1705500641267,-500.0,0.00021917,2]
[311917332,1705500641276,-500.0,0.00021917,2]
[311917334,1705500641286,-500.0,0.00021917,2]
[311917336,1705500641295,-500.0,0.00021917,2]
[311917338,1705500641303,-500.0,0.00021917,2]
[311917340,1705500641312,-500.0,0.00021917,2]
[311917342,1705500641322,-500.0,0.00021917,2]
[311917344,1705500641333,-500.0,0.00021917,2]
[311917346,1705500641343,-500.0,0.00021917,2]
[311917348,1705500641352,-200.0,0.00021917,2]
[311917350,1705500641361,-500.0,0.00021917,2]
[311917352,1705500641369,-500.0,0.00021917,2]
[311917354,1705500641379,-500.0,0.00021917,2]
[311917356,1705500641387,-500.0,0.00021917,2]
[311917358,1705500641396,-878.19,0.00021917,2]
[311917360,1705500641405,-500.0,0.00021917,2]
[311917362,1705500641415,-2436.21,0.00021917,2]
[311917364,1705500641424,-474.31978255,0.00021917,2]
[311917366,1705500641433,-500.0,0.00021917,2]
[311917368,1705500641442,-502.14501577,0.00021917,2]
[311917370,1705500641451,-783.61839105,0.00021917,5]
[311917372,1705500641460,-222.24610265,0.00021917,2]
[311917374,1705500641469,-500.0,0.00021917,2]
[311917376,1705500641478,-500.0,0.00021917,2]
[311917377,1705500641486,-500.0,0.00021917,2]
[311917379,1705500641495,-503.73641132,0.00021917,2]
[311917381,1705500641505,-500.0,0.00021917,2]
[311917384,1705500641514,-500.0,0.00021917,2]
[311917385,1705500641523,-500.0,0.00021917,2]
[311917387,1705500641532,-601.97581751,0.00021917,2]
[311917389,1705500641541,-500.0,0.00021917,2]
[311917391,1705500641551,-3477.2,0.00021917,2]
[311917393,1705500641560,-759.32,0.00021917,2]
[311917396,1705500641569,-500.0,0.00021917,2]
[311917398,1705500641578,-500.0,0.00021917,2]
[311917400,1705500641587,-522.0123093,0.00021917,2]
[311917402,1705500641597,-500.0,0.00021917,2]
[311917404,1705500641606,-500.0,0.00021917,2]
[311917406,1705500641616,-254.97616014,0.00021917,2]
[311917408,1705500641624,-500.0,0.00021917,2]
[311917410,1705500641634,-598.60148851,0.00021917,2]
[311917412,1705500641644,-500.0,0.00021917,2]
[311917413,1705500641654,-500.0,0.00021917,2]
[311917415,1705500641663,-500.0,0.00021917,2]
[311917417,1705500641674,-500.0,0.00021917,2]
[311917419,1705500641684,-1278.73,0.00021917,2]
[311917421,1705500641693,-500.0,0.00021917,2]
[311917423,1705500641701,-500.0,0.00021917,2]
[311917426,1705500641711,-500.0,0.00021917,2]
[311917427,1705500641721,-500.0,0.00021917,2]
[311917430,1705500641730,-500.0,0.00021917,2]
[311917431,1705500641739,-263.49192401,0.00021917,2]
[311917433,1705500641749,-506.04070361,0.00021917,2]
[311917435,1705500641759,-500.0,0.00021917,2]
[311917437,1705500641768,-500.0,0.00021917,2]
[311917439,1705500641777,-500.0,0.00021917,2]
[311917441,1705500641786,-500.0,0.00021917,2]
[311917443,1705500641794,-500.0,0.00021917,2]
[311917445,1705500641804,-500.96646124,0.00021917,2]
[311917447,1705500641813,-500.0,0.00021917,2]
[311917449,1705500641822,-500.0,0.00021917,5]
[311917451,1705500641832,-501.47332198,0.00021917,2]
[311917453,1705500641842,-500.0,0.00021917,2]
[311917455,1705500641851,-500.0,0.00021917,2]
[311917458,1705500641860,-505.95267522,0.00021917,2]
[311917459,1705500641869,-978.02,0.00021917,2]
[311917462,1705500641879,-500.0,0.00021917,2]
[311917463,1705500641888,-16398.89,0.00021917,2]
[311917465,1705500641898,-380.81535745,0.00021917,2]
[311917467,1705500641907,-502.96184779,0.00021917,2]
[311917470,1705500641917,-501.21701358,0.00021917,2]
[311917478,1705500641929,-500.0,0.00021917,2]
[311917480,1705500641996,-500.0,0.00021917,2]
[311917482,1705500642006,-1323.55,0.00021917,2]
[311917484,1705500642014,-1323.55,0.00021917,2]
[311917486,1705500642022,-1323.55,0.00021917,2]
[311917489,1705500642031,-1323.55,0.00021917,2]
[311917490,1705500642039,-1323.55,0.00021917,2]
[311917492,1705500642049,-1323.55,0.00021917,2]
[311917495,1705500642059,-1323.55,0.00021917,2]
[311917497,1705500642068,-1323.55,0.00021917,2]
[311917498,1705500642077,-500.0,0.00021917,2]
[311917501,1705500642087,-500.0,0.00021917,2]
[311917503,1705500642097,-500.0,0.00021917,2]
[311917505,1705500642106,-500.0,0.00021917,2]
[311917507,1705500642116,-500.0,0.00021917,2]
[311917509,1705500642125,-786.65,0.00021917,2]
[311917511,1705500642134,-500.0,0.00021917,2]
[311917513,1705500642143,-500.0,0.00021917,2]
[311917514,1705500642152,-500.0,0.00021917,2]
[311917517,1705500642161,-500.0,0.00021917,2]
[311917519,1705500642171,-500.0,0.00021917,2]
[311917521,1705500642182,-500.0,0.00021917,2]
[311917523,1705500642191,-500.0,0.00021917,2]
[311917525,1705500642201,-500.0,0.00021917,2]
[311917526,1705500642210,-263.23548355,0.00021917,2]
[311917528,1705500642219,-500.0,0.00021917,2]
[311917530,1705500642228,-500.0,0.00021917,2]
[311917532,1705500642237,-500.0,0.00021917,2]
[311917535,1705500642249,-500.0,0.00021917,2]
[311917536,1705500642258,-518.39614064,0.00021917,2]
[311917538,1705500642268,-500.0,0.00021917,2]
[311917540,1705500642277,-500.0,0.00021917,2]
[311917543,1705500642286,-500.0,0.00021917,2]
[311917544,1705500642295,-557.81864135,0.00021917,2]
[311917547,1705500642305,-1676.49,0.00021917,2]
[311917549,1705500642316,-500.0,0.00021917,2]
[311917551,1705500642326,-500.0,0.00021917,2]
[311917553,1705500642336,-1502.11,0.00021917,2]
[311917555,1705500642346,-500.0,0.00021917,2]
[311917556,1705500642356,-500.0,0.00021917,2]
[311917558,1705500642366,-500.0,0.00021917,2]
[311917560,1705500642376,-500.0,0.00021917,2]
[311917562,1705500642386,-500.0,0.00021917,2]
[311917564,1705500642396,-7536.4,0.00021917,2]
[311917566,1705500642405,-500.0,0.00021917,2]
[311917568,1705500642414,-7280.28,0.00021917,2]
[311917570,1705500642426,-9057.7,0.00021917,2]
[311917573,1705500642438,-500.0,0.00021917,2]
[311917575,1705500642448,-500.0,0.00021917,2]
[311917576,1705500642457,-500.0,0.00021917,2]
[311917578,1705500642467,-551.84989273,0.00021917,2]
[311917581,1705500642477,-502.91683953,0.00021917,2]
[311917582,1705500642486,-500.0,0.00021917,2]
[311917584,1705500642496,-2912.55,0.00021917,2]
[311917587,1705500642506,-1460.87,0.00021917,2]
[311917589,1705500642515,-500.0,0.00021917,2]
[311917591,1705500642525,-514.29,0.00021917,2]
[311917592,1705500642535,-500.0,0.00021917,2]
[311917594,1705500642545,-236.06186457,0.00021917,2]
[311917597,1705500642554,-840.4,0.00021917,2]
[311917598,1705500642564,-500.0,0.00021917,2]
[311917600,1705500642574,-500.0,0.00021917,2]
[311917602,1705500642583,-500.0,0.00021917,2]
[311917604,1705500642592,-536.33,0.00021917,2]
[311917606,1705500642602,-502.52359006,0.00021917,2]
[311917609,1705500642613,-2805.55,0.00021917,2]
[311917610,1705500642622,-16544.15,0.00021917,2]
[311917612,1705500642632,-500.0,0.00021917,2]
[311917614,1705500642642,-500.0,0.00021917,2]
[311917617,1705500642653,-500.0,0.00021917,2]
[311917619,1705500642662,-500.0,0.00021917,2]
[311917621,1705500642672,-198.79879071,0.00021917,2]
[311917622,1705500642685,-500.0,0.00021917,2]
[311917624,1705500642695,-500.0,0.00021917,2]
[311917626,1705500642704,-500.0,0.00021917,2]
[311917628,1705500642714,-500.0,0.00021917,2]
[311917630,1705500642725,-500.0,0.00021917,2]
[311917632,1705500642735,-500.0,0.00021917,2]
[311917634,1705500642744,-1840.68,0.00021917,2]
[311917636,1705500642752,-500.0,0.00021917,2]
[311917638,1705500642761,-1825.21,0.00021917,2]
[311917640,1705500642770,-500.0,0.00021917,2]
[311917642,1705500642780,-500.0,0.00021917,2]
[311917644,1705500642789,-845.75,0.00021917,2]
[311917646,1705500642798,-500.0,0.00021917,2]
[311917648,1705500642807,-500.0,0.00021917,2]
[311917650,1705500642816,-500.0,0.00021917,2]
[311917652,1705500642825,-500.29488324,0.00021917,2]
[311917654,1705500642834,-500.0,0.00021917,2]
[311917656,1705500642843,-2323.22,0.00021917,2]
[311917658,1705500642853,-2973.43,0.00021917,2]
[311917661,1705500642862,-500.0,0.00021917,2]
[311917663,1705500642871,-500.0,0.00021917,2]
[311917665,1705500642880,-500.0,0.00021917,2]
[311917667,1705500642889,-635.41544431,0.00021917,2]
[311917669,1705500642898,-500.0,0.00021917,2]
[311917671,1705500642907,-500.0,0.00021917,2]
[311917673,1705500642916,-500.0,0.00021917,2]
[311917676,1705500642929,-501.3034891,0.00021917,2]
[311917679,1705500642938,-500.0,0.00021917,2]
[311917682,1705500642947,-500.0,0.00021917,2]
[311917685,1705500642957,-500.0,0.00021917,2]
[311917688,1705500642966,-500.0,0.00021917,2]
[311917691,1705500642975,-500.0,0.00021917,2]
[311917694,1705500642984,-201.40168416,0.00021917,2]
[311917698,1705500642993,-925.14,0.00021917,2]
[311917701,1705500643002,-500.0,0.00021917,2]
[311917703,1705500643011,-500.0,0.00021917,2]
[311917706,1705500643020,-500.0,0.00021917,2]
[311917709,1705500643029,-500.0,0.00021917,2]
[311917712,1705500643038,-500.0,0.00021917,2]
[311917725,1705500643104,-500.0,0.00021917,2]
[311917728,1705500643113,-500.0,0.00021917,2]
[311917731,1705500643121,-889.53,0.00021917,2]
[311917733,1705500643130,-612.65,0.00021917,2]
[311917736,1705500643139,-746.01,0.00021917,2]
[311917739,1705500643148,-500.0,0.00021917,2]
[311917742,1705500643157,-500.0,0.00021917,2]
[311917744,1705500643166,-500.0,0.00021917,2]
[311917747,1705500643178,-500.0,0.00021917,2]
[311917750,1705500643187,-257.53,0.00021917,2]
[311917753,1705500643195,-543.09,0.00021917,2]
[311917755,1705500643204,-500.79749771,0.00021917,2]
[311917758,1705500643213,-500.0,0.00021917,2]
[311917761,1705500643222,-2596.88,0.00021917,2]
[311917763,1705500643231,-502.16920952,0.00021917,2]
[311917766,1705500643240,-6109.65,0.00021917,2]
[311917769,1705500643249,-500.0,0.00021917,2]
[311917772,1705500643259,-500.0,0.00021917,2]
[311917775,1705500643268,-500.0,0.00021917,2]
[311917777,1705500643277,-500.0,0.00021917,2]
[311917780,1705500643286,-500.0,0.00021917,2]
[311917783,1705500643296,-1391.82,0.00021917,2]
[311917786,1705500643305,-500.0,0.00021917,2]
[311917788,1705500643314,-500.0,0.00021917,2]
[311917791,1705500643324,-500.0,0.00021917,2]
[311917794,1705500643334,-28407.72,0.00021917,2]
[311917797,1705500643343,-1955.7,0.00021917,2]
[311917800,1705500643353,-500.0,0.00021917,2]
[311917803,1705500643362,-224.4532379,0.00021917,2]
[311917806,1705500643371,-166.666666,0.00021918,2]
[311917808,1705500643380,-153.2206058,0.00021918,2]
[311917811,1705500643389,-153.0,0.00021918,2]
[311917814,1705500643398,-153.0,0.00021918,2]
[311917817,1705500643407,-198.957615,0.00021918,2]
[311917819,1705500643416,-198.957615,0.00021918,2]
[311917822,1705500643428,-153.0,0.00021918,2]
[311917825,1705500643437,-316.9086742,0.00021918,2]
[311917828,1705500643450,-219.4838227,0.00021918,2]
[311917830,1705500643459,-153.0,0.00021918,2]
[311917832,1705500643469,-309.2309433,0.00021918,2]
[311917835,1705500643479,-9111.67082876,0.00021945,2]
[311917836,1705500643488,-16984.28367361,0.00021954,2]
[311917838,1705500643498,-500.0,0.00021959,2]
[311917842,1705500643507,-500.0,0.00021959,2]
[311917845,1705500643516,-1323.55,0.00021959,2]
[311917848,1705500643526,-1323.55,0.00021959,2]
[311917850,1705500643534,-5000.0,0.0002196,2]
[311917853,1705500643543,-5000.0,0.0002196,2]
[311917856,1705500643552,-5238.93106815,0.0002196,2]
[311917859,1705500643561,-5000.0,0.0002196,2]
[311917863,1705500643573,-4844.79233646,0.0002196,2]
[311917868,1705500643589,-5000.0,0.0002196,2]
[311917871,1705500643604,-5000.0,0.0002196,2]
[311917876,1705500643620,-68929.45759006,0.0002196,2]
[311917880,1705500643636,-7500.11113749,0.0002196,2]
[311917885,1705500643654,-173.939081,0.0002196,2]
[311917888,1705500643667,-50000.0,0.0002196,2]
[311917893,1705500643684,-5000.0,0.0002196,2]
[311917897,1705500643698,-203.88975,0.0002196,2]
[311917901,1705500643714,-203.88975,0.0002196,2]
[311917905,1705500643730,-203.88975,0.0002196,2]
[311917910,1705500643745,-203.88975,0.0002196,2]
[311917913,1705500643759,-545.520959,0.0002196,2]
[311917918,1705500643775,-545.520959,0.0002196,2]
[311917922,1705500643792,-545.520959,0.0002196,2]
[311917926,1705500643810,-545.520959,0.0002196,2]
[311917931,1705500643824,-50000.0,0.00021961,2]
[311917934,1705500643835,-61482.28236991,0.00021961,2]
[311917938,1705500643847,-545.520959,0.00021961,2]
[311917942,1705500643861,-545.520959,0.00021961,2]
[311917946,1705500643875,-50000.0,0.00021968,2]
[311917950,1705500643886,-86370.57059248,0.00021968,2]
[311917953,1705500643899,-500.0,0.00021999,2]
[311917958,1705500643911,-293.1976279,0.00022,4]
[311917961,1705500643924,-425.53656097,0.00022,2]
[311917964,1705500643937,-3955.54830897,0.00022,2]
[311917969,1705500643949,-154.9690062,0.00022,2]
[311917972,1705500643961,-374.76193364,0.00022,2]
[311917975,1705500643974,-5147.32326168,0.0002204,2]
[311917979,1705500643987,-151.0,0.00022053,2]
[311917981,1705500644000,-500.0,0.00022053,2]
[311917984,1705500644012,-500.0,0.00022053,2]
[311917986,1705500644025,-500.0,0.00022053,2]
[311917988,1705500644038,-500.0,0.00022053,2]
[311917991,1705500644050,-1323.55,0.00022053,2]
[311917993,1705500644063,-1323.55,0.00022053,2]
[311917995,1705500644075,-1323.55,0.00022053,2]
[311917998,1705500644089,-1323.55,0.00022053,2]
[311918000,1705500644104,-1323.55,0.00022053,2]
[311918003,1705500644117,-151.0,0.00022054,2]
[311918005,1705500644129,-203.88975,0.00022054,2]
[311918007,1705500644141,-203.88975,0.00022054,2]
[311918010,1705500644154,-203.88975,0.00022054,2]
[311918012,1705500644166,-203.88975,0.00022054,2]
[311918015,1705500644179,-545.520959,0.00022054,2]
[311918019,1705500644191,-545.520959,0.00022054,2]
[311918023,1705500644203,-545.520959,0.00022054,2]
[311918027,1705500644216,-545.520959,0.00022054,2]
[311918030,1705500644227,-330.6015298,0.00022054,2]
[311918034,1705500644240,-638.48739459,0.00022054,2]
[311918038,1705500644253,-500.0,0.00022054,2]
[311918060,1705500644349,-500.0,0.00022054,2]
[311918062,1705500644361,-500.0,0.00022054,2]
[311918064,1705500644371,-429.95876673,0.00022054,2]
[311918067,1705500644380,-540.7180897,0.00022054,2]
[311918069,1705500644390,-500.0,0.00022054,2]
[311918071,1705500644398,-500.0,0.00022054,2]
[311918073,1705500644407,-612.03,0.00022054,2]
[311918075,1705500644417,-500.0,0.00022054,2]
[311918077,1705500644429,-500.0,0.00022054,2]
[311918079,1705500644437,-500.0,0.00022054,2]
[311918081,1705500644447,-508.74722001,0.00022054,2]
[311918083,1705500644456,-500.0,0.00022054,2]
[311918085,1705500644465,-1650.93,0.00022054,2]
[311918087,1705500644474,-500.0,0.00022054,2]
[311918089,1705500644483,-500.0,0.00022054,2]
[311918091,1705500644492,-500.0,0.00022054,2]
[311918093,1705500644501,-500.0,0.00022054,2]
[311918095,1705500644511,-500.0,0.00022054,2]
[311918097,1705500644522,-500.0,0.00022054,2]
[311918099,1705500644532,-1000.0,0.00022054,2]
[311918101,1705500644542,-500.0,0.00022054,2]
[311918103,1705500644551,-500.0,0.00022054,2]
[311918105,1705500644560,-850.43,0.00022054,2]
[311918107,1705500644569,-500.0,0.00022054,2]
[311918109,1705500644578,-500.0,0.00022054,2]
[311918111,1705500644587,-500.0,0.00022054,2]
[311918113,1705500644596,-500.0,0.00022054,2]
[311918115,1705500644605,-500.0,0.00022054,2]
[311918117,1705500644615,-802.59,0.00022054,2]
[311918119,1705500644625,-500.0,0.00022054,2]
[311918121,1705500644636,-357.88867272,0.00022054,2]
[311918123,1705500644653,-705.57,0.00022054,2]
[311918125,1705500644663,-633.85,0.00022054,2]
[311918127,1705500644673,-1068.65134143,0.00022054,2]
[311918129,1705500644682,-500.0,0.00022054,2]
[311918130,1705500644694,-500.0,0.00022054,2]
[311918132,1705500644703,-500.0,0.00022054,2]
[311918135,1705500644713,-500.0,0.00022054,2]
[311918136,1705500644722,-500.0,0.00022054,2]
[311918138,1705500644731,-500.0,0.00022054,2]
[311918140,1705500644741,-506.24672197,0.00022054,2]
[311918142,1705500644750,-500.0,0.00022054,2]
[311918144,1705500644759,-500.0,0.00022054,2]
[311918147,1705500644769,-500.0,0.00022054,2]
[311918148,1705500644778,-500.0,0.00022054,2]
[311918150,1705500644789,-500.0,0.00022054,2]
[311918152,1705500644798,-500.0,0.00022054,2]
[311918154,1705500644808,-174.74456145,0.00022054,2]